Workbook

Sheet Cover
B3: Excel & Business Math 27
B4: Bank Reconciliation
C6: Topics:
C7: 1) Checks 2) Types of Endorsements 3) Terms used in Bank Reconciliation, 4) Bank Reconciliation
C8: 5) View 2 Different Sheets Simulateously, 6) Conditional Formatting and Data Validation

Sheet Checks
AM1: Define a check: A check is a written, dated, and signed negotiable instrument that contains an unconditional order from the Payor that directs a bank to pay a definite sum of money to a payee.
B2: Sioux's Accounting | E2: No. | F2: 4025 | AM2: Parts of a check:
B3: 3985 14th Ave. S. | F3: 66-420 | AM3: 1. Payor's printed address.
B4: Seattle, WA 98106 | F4: 1210 | AM4: 2. Checking Number. Every check in your checking book will have a unique, sequential check number. The unique, sequential check number helps you to track checks for your Bank Reconciliation and to help identify if a transaction is missing.
E5: Date | F5: =TODAY() -> 2018-02-14 | AM5: 3. Date. On this data or after, the money can be transferred from your account (payor) to the payee's account
C6: PAY TO THE ORDER OF: | D6: Home Depot | E6: Amount | F6: $158.70 | AM6: 4. Bank identification code (ABA transit number) Numerator: City, State, Bank. Denominator: Federal Reserve District and Bank
C7: Amount | D7: One Hundred Fifty Eight Dollars And Seventy Cents----------------------------------------------------------------------------------------------------------------------- | F7: Dollars | AM7: 5. Pay to The Order Of. Payee's name. This is the person receiving the money.
AM8: 6. Write out in numbers the amount of the check.
B9: Boeing Employees Credit Union | AM9: 7. Clearly write the check amount in words. You want to use words for the dollars and cents. Words supersede numerals for amount
B10: 12770 Gateway Dr. | AM10: 8. The memo is optional, state the purpose of the payment.
B11: Tukwila, WA 98168 | AM11: 9. Sign the check with your name. Without a valid signature of the check holder another bank won’t accept the check. Should match signature on signature card that the bank holds. The back of the check is where the payee will sign there name before depositing the check.
C12: By | D12: Sioux Radcoolinator | AM12: 10. This is the ABA transit number.
B13: Memo | C13: Purchase Desk | AM13: 11. Your bank account number
C14: l▪▪ 1210 ▪▪▪ 0420 l▪▪ 6005655960 ll■ 4025 | AM14: 12. Check number. This is simply your checking number displayed again, the same as seen in #2.
AM15: Canceled Check: check that has be processed, and stamps on back of check indicate that payment has been made. Canceled check is not a void check, it is the term used to say that payment has been made.
AM17: What is an electronic photo of a canceled check that you obtain?
AM18: Record of business transaction
AM19: Proof that you paid someone
A22: front of check
A24: canceled check
D60: Who is the drawer, or payor, or payer?
D61: Person who writes check
D62: Who is the payee?
D63: Person to whom the payment is made
D64: What is a check?
D65: Order by drawer for bank to make payment to payee
D66: Check that has not been filled out?
D67: Paper
D68: Signed check made out to you?
D69: Asset: Cash
D71: Types of checking accounts:
D72: Checking accounts are offered by:
D73: Banks
D74: Saving and Loans
D75: Credit Unions
D76: On-line banks (reduced costs of on-line services can result in higher interest being paid and lower service costs)
D78: Personal checking accounts:
D79: Below a set balance may result in a service fee
D80: Account may earn interest
D82: Business checking accounts:
D83: Banks offer more services because of the increased levels of money deposited and potential for making loans
D84: Banks will accept payments for the business
D85: Banks may set up a level of credit for the business to make short-term loans
D86: Large businesses may make overnight or short-term deposits to earn interest
D88: ATM Machines:
D89: Be sure to keep the printed out receipts for your records
D91: On-line banks:
D92: Reduced costs of on-line services can result in higher interest being paid and lower service costs
D93: Transactions and banking activity can be performed more conveniently from a computer
D94: Check balances and reconcile on-line at home or at the business
D95: Pay bills from the on-line bank site
D97: Debit Cards
D98: When you use a debit card the cash is withdrawn from your account
D101: Credit Cards
D102: Credit Cards are not associated directly with your checking account
D103: When you use a credit card you "go into debt"

Sheet Check Stubs
C2: 4025 | H2: Suix's Accounting | K2: No. | L2: 4025
C3: Date: | D3: 2007-01-23 | H3: 3985 14th Ave. S. | L3: 66-420
C4: Amount | D4: $158.70 | H4: Seattle, WA 98106 | L4: 1210
C5: To | D5: Home Depot | K5: Date | L5: =TODAY() -> 2018-02-14
C6: For | D6: Purchase Desk | I6: PAY TO THE ORDER OF: | J6: Home Depot | K6: Amount | L6: $158.70
C7: Bal. Bro't For'd | E7: 5000.25 | I7: Amount | J7: One Hundred Fifty Eight Dollars And Seventy Cents----------------------------------------------------------------------------------------------------------------------- | L7: Dollars
C8: Am't Deposited
C9: Total | E9: =SUM(E7:E8) -> 5000.25 | H9: Boeing Employees Credit Union
C10: Am't this Check | E10: =D4 -> $158.70 | H10: 12770 Gateway Dr.
C11: Balance For'd | E11: =E9-E10 -> 4841.55 | H11: Tukwila, WA 98168
I12: By | J12: Suix Radcoolinator
H13: Memo | I13: Purchase Desk
I14: l▪▪ 1210 ▪▪▪ 0420 l▪▪ 6005655960 ll■ 4025
A16: Why are checks stubs important?
A17: Because you use the check stub as the source information to enter the business transaction into the official business accounting system

Sheet Deposit Slips

Sheet Types of Endorsements
B1: Types of Endorsements
B2: Restrictive endorsement
B3: Restricts or limits further transfer of title
B4: Example: “for deposit only”
B5: Blank endorsement
B6: Signature of payee only – does not restrict further transfer
B7: Special endorsement
B8: “Pay to the order of…”
B9: Qualified endorsement
B10: “Without recourse
B11: Frees endorser (original payee) from future liability if drawer does not honor the check

Sheet Bank Terms

Sheet Why Bank Reconcilations
A1: Why Bank Reconciliations?
A2: Because there are two different statements tracking the same account: 1) Your Checkbook Register and the 2) Bank Statement
A4: Because there are things in our check book that the bank does not know about like: | I4: Because there are things on the bank statement that we do not know about like:
A5: Deposits in Transit | I5: Transfers
A6: Outstanding Checks | I6: Interest Paid
I7: Service Charge
A9: Check Book Register | I9: Bank Statement
A10: Date | B10: Ref # | C10: Description | D10: Withdraw | E10: Deposit | F10: Reconcile? | G10: Balance | I10: Date | J10: Ref # | K10: Withdraw | L10: Deposit | M10: Reconcile? | N10: Balance
A11: Balance Forward ==>> | G11: 2589.22 | I11: Balance Forward ==>> | N11: =G11-D12 -> 2469.22
A12: 2018-01-31 | B12: AMT22109 | C12: Withdraw | D12: 120 | F12: X | G12: =IF(ISBLANK(A12),"",G11+E12-D12) -> 2469.22 | I12: =A13 -> 2018-02-03 | J12: Check #12118 | K12: =D13 -> 22.75 | N12: =IF(ISBLANK(I12),"",N11+L12-K12) -> 2446.47
A13: =A12+3 -> 2018-02-03 | B13: Check #12118 | C13: Home Depot | D13: 22.75 | G13: =IF(ISBLANK(A13),"",G12+E13-D13) -> 2446.47 | I13: 2018-02-06 | J13: Check #12119 | K13: 375.11 | N13: =IF(ISBLANK(I13),"",N12+L13-K13) -> 2071.36
A14: =A13+3 -> 2018-02-06 | B14: Check #12119 | C14: Anderson Plywood | D14: 375.11 | G14: 2071.36 | I14: 2018-02-07 | J14: Deposit | L14: =E15 -> 1257.91 | N14: 3329.27
A15: =A14+1 -> 2018-02-07 | B15: Deposit | C15: Customer Collections 611 | E15: 1257.91 | G15: 3329.27 | I15: 2018-02-19 | J15: e8310302 | K15: =D16 -> 298.73 | N15: 3030.54
A16: =A15+12 -> 2018-02-19 | B16: e8310302 | C16: Seattle City Lights | D16: 298.73 | G16: 3030.54 | I16: 2018-02-27 | J16: Deposit-FR-62155 | L16: =510*14.95 -> 7624.5 | N16: 10655.04
A17: =A16+9 -> 2018-02-28 | B17: Deposit | C17: Customer Collections 612 | E17: 3550.01 | G17: 6580.55 | I17: 2018-02-28 | J17: Interest Paid | L17: 2.46922 | N17: 10657.50922
A18: =A17 -> 2018-02-28 | B18: Check #12120 | C18: Bay Air Services | D18: 2336.8 | G18: 4243.75 | I18: 2018-02-28 | J18: Service Fee | K18: 1.25 | N18: 10656.25922
D21: Adjusted Checkbook Balance | K21: Adjusted Bank Balance
F23: In Balance?

Sheet Why Bank Reconcilations (an)
A1: Why Bank Reconciliations?
A2: Because there are two different statements tracking the same account: 1) Your Checkbook Register and the 2) Bank Statement
A4: Because there are things in our check book that the bank does not know about like: | I4: Because there are things on the bank statement that we do not know about like:
A5: Deposits in Transit | I5: Transfers
A6: Outstanding Checks | I6: Interest Paid
I7: Service Charge
A9: Check Book Register | I9: Bank Statement
A10: Date | B10: Ref # | C10: Description | D10: Withdraw | E10: Deposit | F10: Reconcile? | G10: Balance | I10: Date | J10: Ref # | K10: Withdraw | L10: Deposit | M10: Reconcile? | N10: Balance
A11: Balance Forward ==>> | G11: 2589.22 | I11: Balance Forward ==>> | N11: =G11-D12 -> 2469.22
A12: 2018-01-31 | B12: AMT22109 | C12: Withdraw | D12: 120 | F12: X | G12: =IF(ISBLANK(A12),"",G11+E12-D12) -> 2469.22 | I12: =A13 -> 2018-02-03 | J12: Check #12118 | K12: =D13 -> 22.75 | M12: X | N12: =IF(ISBLANK(I12),"",N11+L12-K12) -> 2446.47
A13: =A12+3 -> 2018-02-03 | B13: Check #12118 | C13: Home Depot | D13: 22.75 | F13: X | G13: =IF(ISBLANK(A13),"",G12+E13-D13) -> 2446.47 | I13: 2018-02-06 | J13: Check #12119 | K13: 375.11 | M13: X | N13: =IF(ISBLANK(I13),"",N12+L13-K13) -> 2071.36
A14: =A13+3 -> 2018-02-06 | B14: Check #12119 | C14: Anderson Plywood | D14: 375.11 | F14: X | G14: 2071.36 | I14: 2018-02-07 | J14: Deposit | L14: =E15 -> 1257.91 | M14: X | N14: 3329.27
A15: =A14+1 -> 2018-02-07 | B15: Deposit | C15: Customer Collections 611 | E15: 1257.91 | F15: X | G15: 3329.27 | I15: 2018-02-19 | J15: e8310302 | K15: =D16 -> 298.73 | M15: X | N15: 3030.54
A16: =A15+12 -> 2018-02-19 | B16: e8310302 | C16: Seattle City Lights | D16: 298.73 | F16: X | G16: 3030.54 | I16: 2018-02-27 | J16: Deposit-FR-62155 | L16: =510*14.95 -> 7624.5 | N16: 10655.04
A17: =A16+9 -> 2018-02-28 | B17: Deposit | C17: Customer Collections 612 | E17: 3550.01 | G17: 6580.55 | I17: 2018-02-28 | J17: Interest Paid | L17: 2.46922 | N17: 10657.50922
A18: =A17 -> 2018-02-28 | B18: Check #12120 | C18: Bay Air Services | D18: 2336.8 | G18: 4243.75 | I18: 2018-02-28 | J18: Service Fee | K18: 1.25 | N18: 10656.25922
D21: Adjusted Checkbook Balance | G21: =G18+L16+L17-K18 -> 11869.46922 | K21: Adjusted Bank Balance | N21: =N18+E17-D18 -> 11869.46922
F23: In Balance? | G23: =G21=N21 -> TRUE

Sheet Ex(2)
A1: Why Bank Reconciliations?
A2: Because there are two different statements tracking the same account: 1) Your Checkbook Register and the 2) Bank Statement
A4: Because there are things in our check book that the bank does not know about like: | I4: Because there are things on the bank statement that we do not know about like:
A5: Deposits in Transit | I5: Transfers
A6: Outstanding Checks | I6: Interest Paid
I7: Service Charge
A9: Check Book Register | I9: Bank Statement
A10: Date | B10: Ref # | C10: Description | D10: Withdraw | E10: Deposit | F10: Reconcile? | G10: Balance | I10: Date | J10: Ref # | K10: Withdraw | L10: Deposit | M10: Reconcile? | N10: Balance
A11: Balance Forward ==>> | G11: 2589.22 | I11: Balance Forward ==>> | N11: =G11-D12 -> 2469.22
A12: 2018-01-31 | B12: AMT22109 | C12: Withdraw | D12: 120 | F12: X | G12: =IF(ISBLANK(A12),"",G11+E12-D12) -> 2469.22 | I12: =A13 -> 2018-02-03 | J12: Check #12118 | K12: =D13 -> 22.75 | N12: =IF(ISBLANK(I12),"",N11+L12-K12) -> 2446.47
A13: =A12+3 -> 2018-02-03 | B13: Check #12118 | C13: Home Depot | D13: 22.75 | G13: =IF(ISBLANK(A13),"",G12+E13-D13) -> 2446.47 | I13: 2018-02-06 | J13: Check #12119 | K13: 375.11 | N13: =IF(ISBLANK(I13),"",N12+L13-K13) -> 2071.36
A14: =A13+3 -> 2018-02-06 | B14: Check #12119 | C14: Anderson Plywood | D14: 375.11 | G14: 2071.36 | I14: 2018-02-07 | J14: Deposit | L14: =E15 -> 1257.91 | N14: 3329.27
A15: =A14+1 -> 2018-02-07 | B15: Deposit | C15: Customer Collections 611 | E15: 1257.91 | G15: 3329.27 | I15: 2018-02-19 | J15: e8310302 | K15: =D16 -> 298.73 | N15: 3030.54
A16: =A15+12 -> 2018-02-19 | B16: e8310302 | C16: Seattle City Lights | D16: 298.73 | G16: 3030.54 | I16: 2018-02-27 | J16: Deposit-FR-62155 | L16: 7624.5 | N16: 10655.04
A17: =A16+9 -> 2018-02-28 | B17: Deposit | C17: Customer Collections 612 | E17: 3550.01 | G17: 6580.55 | I17: 2018-02-28 | J17: Interest Paid | L17: 2.47 | N17: 10657.51
A18: =A17 -> 2018-02-28 | B18: Check #12120 | C18: Bay Air Services | D18: 2336.8 | G18: 4243.75 | I18: 2018-02-28 | J18: Service Fee | K18: 1.25 | N18: 10656.26
D25: Adjusted Bank Balance
F27: Equal?

Sheet Ex(2an)
A1: Why Bank Reconciliations?
A2: Because there are two different statements tracking the same account: 1) Your Checkbook Register and the 2) Bank Statement
A4: Because there are things in our check book that the bank does not know about like: | I4: Because there are things on the bank statement that we do not know about like:
A5: Deposits in Transit | I5: Transfers
A6: Outstanding Checks | I6: Interest Paid
I7: Service Charge
A9: Check Book Register | I9: Bank Statement
A10: Date | B10: Ref # | C10: Description | D10: Withdraw | E10: Deposit | F10: Reconcile? | G10: Balance | I10: Date | J10: Ref # | K10: Withdraw | L10: Deposit | M10: Reconcile? | N10: Balance
A11: Balance Forward ==>> | G11: 2589.22 | I11: Balance Forward ==>> | N11: =G11-D12 -> 2469.22
A12: 2018-01-31 | B12: AMT22109 | C12: Withdraw | D12: 120 | F12: X | G12: =IF(ISBLANK(A12),"",G11+E12-D12) -> 2469.22 | I12: =A13 -> 2018-02-03 | J12: Check #12118 | K12: =D13 -> 22.75 | M12: X | N12: =IF(ISBLANK(I12),"",N11+L12-K12) -> 2446.47
A13: =A12+3 -> 2018-02-03 | B13: Check #12118 | C13: Home Depot | D13: 22.75 | F13: X | G13: =IF(ISBLANK(A13),"",G12+E13-D13) -> 2446.47 | I13: 2018-02-06 | J13: Check #12119 | K13: 375.11 | M13: X | N13: =IF(ISBLANK(I13),"",N12+L13-K13) -> 2071.36
A14: =A13+3 -> 2018-02-06 | B14: Check #12119 | C14: Anderson Plywood | D14: 375.11 | F14: X | G14: 2071.36 | I14: 2018-02-07 | J14: Deposit | L14: =E15 -> 1257.91 | M14: X | N14: 3329.27
A15: =A14+1 -> 2018-02-07 | B15: Deposit | C15: Customer Collections 611 | E15: 1257.91 | F15: X | G15: 3329.27 | I15: 2018-02-19 | J15: e8310302 | K15: =D16 -> 298.73 | M15: X | N15: 3030.54
A16: =A15+12 -> 2018-02-19 | B16: e8310302 | C16: Seattle City Lights | D16: 298.73 | F16: X | G16: 3030.54 | I16: 2018-02-27 | J16: Deposit-FR-62155 | L16: 7624.5 | M16: X | N16: 10655.04
A17: =A16+9 -> 2018-02-28 | B17: Deposit | C17: Customer Collections 612 | E17: 3550.01 | G17: 6580.55 | I17: 2018-02-28 | J17: Interest Paid | L17: 2.47 | M17: X | N17: 10657.51
A18: =A17 -> 2018-02-28 | B18: Check #12120 | C18: Bay Air Services | D18: 2336.8 | G18: 4243.75 | I18: 2018-02-28 | J18: Service Fee | K18: 1.25 | M18: X | N18: 10656.26
A19: 2018-02-27 | B19: Deposit-FR-62155 | C19: Customer paymnet from FOX LMI Inv. 20002 | E19: 7624.5 | F19: X | G19: 11868.25
A20: 2018-02-28 | B20: Interest Paid | C20: Interest Earned on Checking Account | E20: 2.47 | F20: X | G20: 11870.72
A21: 2018-02-28 | B21: Service Fee | C21: Monthly Service Fee | D21: 1.25 | F21: X | G21: 11869.47
D25: Adjusted Bank Balance | G25: =N18+E17-D18 -> 11869.47
F27: Equal? | G27: =G25=G21 -> TRUE

Sheet Ex(3)
A2: Check Book Register | I2: Bank Statement - BECU Account 7289565
A3: Date | B3: Ref # | C3: Description | D3: Withdraw | E3: Deposit | F3: Reconcile? | G3: Balance | I3: Date | J3: Ref # | K3: Withdraw | L3: Deposit | M3: Reconcile? | N3: Balance
A4: Balance Forward ==>> | G4: 2589.22 | I4: Balance Forward ==>> | N4: 2469.22
A5: 2018-01-31 | B5: AMT22109 | C5: Withdraw | D5: 120 | F5: X | G5: =IF(ISBLANK(A5),"",G4+E5-D5) -> 2469.22 | I5: 2018-02-03 | J5: Check #12118 | K5: 22.75 | N5: 2446.47
A6: =A5+3 -> 2018-02-03 | B6: Check #12118 | C6: Home Depot | D6: 22.75 | G6: =IF(ISBLANK(A6),"",G5+E6-D6) -> 2446.47 | I6: 2018-02-06 | J6: Check #12119 | K6: 375.11 | N6: 2071.36
A7: =A6+3 -> 2018-02-06 | B7: Check #12119 | C7: Anderson Plywood | D7: 375.11 | G7: 2071.36 | I7: 2018-02-07 | J7: Deposit | L7: 1257.91 | N7: 3329.27
A8: =A7+1 -> 2018-02-07 | B8: Deposit | C8: Customer Collections 611 | E8: 1257.91 | G8: 3329.27 | I8: 2018-02-19 | J8: e8310302 | K8: 288.73 | N8: 3040.54
A9: =A8+12 -> 2018-02-19 | B9: e8310302 | C9: Seattle City Lights | D9: 298.73 | G9: 3030.54 | I9: 2018-02-27 | J9: Deposit-FR-62155 | L9: 7624.5 | N9: 10665.04
A10: =A9+9 -> 2018-02-28 | B10: Deposit | C10: Customer Collections 612 | E10: 3550.01 | G10: 6580.55 | I10: 2018-02-28 | J10: Interest Paid | L10: 2.47 | N10: 10667.51
A11: =A10 -> 2018-02-28 | B11: Check #12120 | C11: Bay Air Services | D11: 2336.8 | G11: 4243.75 | I11: 2018-02-28 | J11: Service Fee | K11: 1.25 | N11: 10666.26
A12: 2018-02-27 | I12: 2018-02-28 | J12: ATM from 7-11 | K12: 103 | N12: 10563.26
A13: 2018-02-28
A14: 2018-02-28
G15: =IF(ISBLANK(A15),"",G14+E15-D15) -> 

Sheet Ex(3 BR Form)
B1: Reconcile Form
B3: Checks Outstanding | D3: Compare the list of checks paid by the bank with your records. List and total the checks not yet paid.
B4: Number | C4: Amount
B5: ='Ex(3)'!B11 -> Check #12120 | C5: ='Ex(3)'!D11 -> 2336.8 | D5: 1 | E5: Enter new balance from bank statement:
D7: 2 | E7: List any deposits made by you and | H7: +
E8: not yet recorded by the bank: | H8: +
H9: +
H10: +
D11: 3 | E11: Add all numbers from lines above.
E12: Total:
D13: 4 | E13: Total of checks outstanding: | H13: -
D14: 5 | E14: Subtract (4) from (3). This is the adjusted bank balance
B16: Total | C16: =SUM(C5:C15) -> 2336.8
B18: To reconcile your records:
B19: 6 | C19: List your checkbook balance
B20: 7 | C20: Fees deducted by bank, not yet subtracted from your checkbook: | F20: -
B21: 8 | C21: Other subtractions | F21: -
B22: 9 | C22: Subtract line(8) & (7) from line (6).
B23: 10 | C23: Additions such as transfers received by bank, corrections: | F23: +
B24: 11 | C24: Add interest credit: | F24: +
B25: 12 | C25: Add lines (10) & (11) to line (9). This is adjsuted checkbook balance.

Sheet Ex(3an)
A2: Check Book Register | I2: Bank Statement - BECU Account 7289565
A3: Date | B3: Ref # | C3: Description | D3: Withdraw | E3: Deposit | F3: Reconcile? | G3: Balance | I3: Date | J3: Ref # | K3: Withdraw | L3: Deposit | M3: Reconcile? | N3: Balance
A4: Balance Forward ==>> | G4: 2589.22 | I4: Balance Forward ==>> | N4: 2469.22
A5: 2018-01-31 | B5: AMT22109 | C5: Withdraw | D5: 120 | F5: X | G5: =IF(ISBLANK(A5),"",G4+E5-D5) -> 2469.22 | I5: 2018-02-03 | J5: Check #12118 | K5: 22.75 | M5: X | N5: 2446.47
A6: =A5+3 -> 2018-02-03 | B6: Check #12118 | C6: Home Depot | D6: 22.75 | F6: X | G6: =IF(ISBLANK(A6),"",G5+E6-D6) -> 2446.47 | I6: 2018-02-06 | J6: Check #12119 | K6: 375.11 | M6: X | N6: 2071.36
A7: =A6+3 -> 2018-02-06 | B7: Check #12119 | C7: Anderson Plywood | D7: 375.11 | F7: X | G7: 2071.36 | I7: 2018-02-07 | J7: Deposit | L7: 1257.91 | M7: X | N7: 3329.27
A8: =A7+1 -> 2018-02-07 | B8: Deposit | C8: Customer Collections 611 | E8: 1257.91 | F8: X | G8: 3329.27 | I8: 2018-02-19 | J8: e8310302 | K8: 288.73 | N8: 3040.54
A9: =A8+12 -> 2018-02-19 | B9: e8310302 | C9: Seattle City Lights | D9: 298.73 | G9: 3030.54 | I9: 2018-02-27 | J9: Deposit-FR-62155 | L9: 7624.5 | N9: 10665.04
A10: =A9+9 -> 2018-02-28 | B10: Deposit | C10: Customer Collections 612 | E10: 3550.01 | G10: 6580.55 | I10: 2018-02-28 | J10: Interest Paid | L10: 2.47 | N10: 10667.51
A11: =A10 -> 2018-02-28 | B11: Check #12120 | C11: Bay Air Services | D11: 2336.8 | G11: 4243.75 | I11: 2018-02-28 | J11: Service Fee | K11: 1.25 | N11: 10666.26
A12: 2018-02-27 | I12: 2018-02-28 | J12: ATM from 7-11 | K12: 103 | N12: 10563.26
A13: 2018-02-28
A14: 2018-02-28
G15: =IF(ISBLANK(A15),"",G14+E15-D15) -> 
D17: Add back in
B18: =B9 -> e8310302 | C18: =C9 -> Seattle City Lights | D18: =D9-K8 -> 10

Sheet Ex(3 BR Form) (an)
B1: Reconcile Form
B3: Checks Outstanding | D3: Compare the list of checks paid by the bank with your records. List and total the checks not yet paid.
B4: Number | C4: Amount
B5: ='Ex(3an)'!B11 -> Check #12120 | C5: ='Ex(3an)'!D11 -> 2336.8 | D5: 1 | E5: Enter new balance from bank statement: | I5: ='Ex(3an)'!N12 -> 10563.26
D7: 2 | E7: List any deposits made by you and | H7: + | I7: ='Ex(3an)'!E10 -> 3550.01
E8: not yet recorded by the bank: | H8: +
H9: +
H10: +
D11: 3 | E11: Add all numbers from lines above.
E12: Total: | I12: =SUM(I5:I10) -> 14113.27
D13: 4 | E13: Total of checks outstanding: | H13: - | I13: =C16 -> 2336.8
D14: 5 | E14: Subtract (4) from (3an). This is the adjusted bank balance | I14: =I12-I13 -> 11776.47
B16: Total | C16: =SUM(C5:C15) -> 2336.8
B18: To reconcile your records:
B19: 6 | C19: List your checkbook balance | G19: ='Ex(3an)'!G11 -> 4243.75
B20: 7 | C20: Fees deducted by bank, not yet subtracted from your checkbook: | F20: - | G20: ='Ex(3an)'!K11 -> 1.25
B21: 8 | C21: Other subtractions | F21: - | G21: ='Ex(3an)'!K12 -> 103
B22: 9 | C22: Subtract line(8) & (7) from line (6). | G22: =G19-G20-G21 -> 4139.5
B23: 10 | C23: Additions such as transfers received by bank, corrections: | F23: + | G23: ='Ex(3an)'!L9+'Ex(3an)'!D18 -> 7634.5
B24: 11 | C24: Add interest credit: | F24: + | G24: ='Ex(3an)'!L10 -> 2.47
B25: 12 | C25: Add lines (10) & (11) to line (9). This is adjsuted checkbook balance. | G25: =SUM(G22:G24) -> 11776.47
G28: In Balance
G29: =G25=I14 -> TRUE

Sheet DV and CF
A1: Why Bank Reconciliations?
A2: Because there are two different statements tracking the same account: 1) Your Checkbook Register and the 2) Bank Statement
A4: Because there are things in our check book that the bank does not know about like: | I4: Because there are things on the bank statement that we do not know about like:
A5: Deposits in Transit | I5: Transfers
A6: Outstanding Checks | I6: Interest Paid
I7: Service Charge
A9: Check Book Register | I9: Bank Statement
A10: Date | B10: Ref # | C10: Description | D10: Withdraw | E10: Deposit | F10: Reconcile? | G10: Balance | I10: Date | J10: Ref # | K10: Withdraw | L10: Deposit | M10: Reconcile? | N10: Balance
A11: Balance Forward ==>> | G11: 2589.22 | I11: Balance Forward ==>> | N11: =G11-D12 -> 2469.22
A12: 2018-01-31 | B12: AMT22109 | C12: Withdraw | D12: 120 | F12: X | G12: =IF(ISBLANK(A12),"",G11+E12-D12) -> 2469.22 | I12: =A13 -> 2018-02-03 | J12: Check #12118 | K12: =D13 -> 22.75 | N12: =IF(ISBLANK(I12),"",N11+L12-K12) -> 2446.47
A13: =A12+3 -> 2018-02-03 | B13: Check #12118 | C13: Home Depot | D13: 22.75 | G13: =IF(ISBLANK(A13),"",G12+E13-D13) -> 2446.47 | I13: 2018-02-06 | J13: Check #12119 | K13: 375.11 | N13: =IF(ISBLANK(I13),"",N12+L13-K13) -> 2071.36
A14: =A13+3 -> 2018-02-06 | B14: Check #12119 | C14: Anderson Plywood | D14: 375.11 | G14: 2071.36 | I14: 2018-02-07 | J14: Deposit | L14: =E15 -> 1257.91 | N14: 3329.27
A15: =A14+1 -> 2018-02-07 | B15: Deposit | C15: Customer Collections 611 | E15: 1257.91 | G15: 3329.27 | I15: 2018-02-19 | J15: e8310302 | K15: =D16 -> 298.73 | N15: 3030.54
A16: =A15+12 -> 2018-02-19 | B16: e8310302 | C16: Seattle City Lights | D16: 298.73 | G16: 3030.54 | I16: 2018-02-27 | J16: Deposit-FR-62155 | L16: 7624.5 | N16: 10655.04
A17: =A16+9 -> 2018-02-28 | B17: Deposit | C17: Customer Collections 612 | E17: 3550.01 | G17: 6580.55 | I17: 2018-02-28 | J17: Interest Paid | L17: 2.47 | N17: 10657.51
A18: =A17 -> 2018-02-28 | B18: Check #12120 | C18: Bay Air Services | D18: 2336.8 | G18: 4243.75 | I18: 2018-02-28 | J18: Service Fee | K18: 1.25 | N18: 10656.26
A19: 2018-02-27
A20: 2018-02-28
A21: 2018-02-28
G22: =IF(ISBLANK(A22),"",G21+E22-D22) -> 

Sheet DV and CF (an)
A1: Why Bank Reconciliations?
A2: Because there are two different statements tracking the same account: 1) Your Checkbook Register and the 2) Bank Statement
A4: Because there are things in our check book that the bank does not know about like: | I4: Because there are things on the bank statement that we do not know about like:
A5: Deposits in Transit | I5: Transfers
A6: Outstanding Checks | I6: Interest Paid
I7: Service Charge
A9: Check Book Register | I9: Bank Statement
A10: Date | B10: Ref # | C10: Description | D10: Withdraw | E10: Deposit | F10: Reconcile? | G10: Balance | I10: Date | J10: Ref # | K10: Withdraw | L10: Deposit | M10: Reconcile? | N10: Balance
A11: Balance Forward ==>> | G11: 2589.22 | I11: Balance Forward ==>> | N11: =G11-D12 -> 2469.22
A12: 2018-01-31 | B12: AMT22109 | C12: Withdraw | D12: 120 | F12: X | G12: =IF(ISBLANK(A12),"",G11+E12-D12) -> 2469.22 | I12: =A13 -> 2018-02-03 | J12: Check #12118 | K12: =D13 -> 22.75 | N12: =IF(ISBLANK(I12),"",N11+L12-K12) -> 2446.47
A13: =A12+3 -> 2018-02-03 | B13: Check #12118 | C13: Home Depot | D13: 22.75 | G13: =IF(ISBLANK(A13),"",G12+E13-D13) -> 2446.47 | I13: 2018-02-06 | J13: Check #12119 | K13: 375.11 | N13: =IF(ISBLANK(I13),"",N12+L13-K13) -> 2071.36
A14: =A13+3 -> 2018-02-06 | B14: Check #12119 | C14: Anderson Plywood | D14: 375.11 | G14: 2071.36 | I14: 2018-02-07 | J14: Deposit | L14: =E15 -> 1257.91 | N14: 3329.27
A15: =A14+1 -> 2018-02-07 | B15: Deposit | C15: Customer Collections 611 | E15: 1257.91 | G15: 3329.27 | I15: 2018-02-19 | J15: e8310302 | K15: =D16 -> 298.73 | N15: 3030.54
A16: =A15+12 -> 2018-02-19 | B16: e8310302 | C16: Seattle City Lights | D16: 298.73 | G16: 3030.54 | I16: 2018-02-27 | J16: Deposit-FR-62155 | L16: 7624.5 | N16: 10655.04
A17: =A16+9 -> 2018-02-28 | B17: Deposit | C17: Customer Collections 612 | E17: 3550.01 | G17: 6580.55 | I17: 2018-02-28 | J17: Interest Paid | L17: 2.47 | N17: 10657.51
A18: =A17 -> 2018-02-28 | B18: Check #12120 | C18: Bay Air Services | D18: 2336.8 | G18: 4243.75 | I18: 2018-02-28 | J18: Service Fee | K18: 1.25 | N18: 10656.26
A19: 2018-02-27
A20: 2018-02-28
A21: 2018-02-28 | I21: =$M12="X" -> FALSE | J21: =$M12="X" -> FALSE | K21: FALSE | L21: FALSE | M21: FALSE | N21: FALSE
G22: =IF(ISBLANK(A22),"",G21+E22-D22) ->  | I22: =$M13="X" -> FALSE | J22: FALSE | K22: FALSE | L22: FALSE | M22: FALSE | N22: FALSE
I23: FALSE | J23: FALSE | K23: FALSE | L23: FALSE | M23: FALSE | N23: FALSE
A24: =$F12="X" -> TRUE | B24: =$F12="X" -> TRUE | C24: TRUE | D24: TRUE | E24: TRUE | F24: TRUE | G24: TRUE | I24: FALSE | J24: FALSE | K24: FALSE | L24: FALSE | M24: FALSE | N24: FALSE
A25: =$F13="X" -> FALSE | B25: FALSE | C25: FALSE | D25: FALSE | E25: FALSE | F25: FALSE | G25: FALSE | I25: FALSE | J25: FALSE | K25: FALSE | L25: FALSE | M25: FALSE | N25: FALSE
A26: FALSE | B26: FALSE | C26: FALSE | D26: FALSE | E26: FALSE | F26: FALSE | G26: FALSE | I26: FALSE | J26: FALSE | K26: FALSE | L26: FALSE | M26: FALSE | N26: FALSE
A27: FALSE | B27: FALSE | C27: FALSE | D27: FALSE | E27: FALSE | F27: FALSE | G27: FALSE | I27: FALSE | J27: FALSE | K27: FALSE | L27: FALSE | M27: FALSE | N27: FALSE
A28: FALSE | B28: FALSE | C28: FALSE | D28: FALSE | E28: FALSE | F28: FALSE | G28: FALSE | I28: FALSE | J28: FALSE | K28: FALSE | L28: FALSE | M28: FALSE | N28: FALSE
A29: FALSE | B29: FALSE | C29: FALSE | D29: FALSE | E29: FALSE | F29: FALSE | G29: FALSE | I29: FALSE | J29: FALSE | K29: FALSE | L29: FALSE | M29: FALSE | N29: FALSE
A30: FALSE | B30: FALSE | C30: =$F18="X" -> FALSE | D30: =$F18="X" -> FALSE | E30: FALSE | F30: FALSE | G30: FALSE | I30: FALSE | J30: FALSE | K30: FALSE | L30: FALSE | M30: FALSE | N30: FALSE
A31: FALSE | B31: FALSE | C31: FALSE | D31: FALSE | E31: FALSE | F31: FALSE | G31: FALSE | I31: FALSE | J31: FALSE | K31: FALSE | L31: FALSE | M31: FALSE | N31: FALSE
A32: FALSE | B32: FALSE | C32: FALSE | D32: FALSE | E32: FALSE | F32: FALSE | G32: FALSE

Sheet HW==>>

Sheet HW(1)
A1: Below are the two documents: 1) the Business Checkbook and the 2) Bank Statement.
A2: Use the Bank Reconciliation Form to verify that the adjusted balance for the checkbook and for the bank statement are equal.
A3: The Legend below indicates the code used by the bank to indicate what each amount represents
A5: Legend
A6: Automatic Teller Machine | E6: ATM
A7: Charge For Checks (Fee paid for Checks) | E7: CP
A8: Interest Credit (Interest Paid) | E8: IC
A9: Returned Check = | E9: RC
A10: electronic Bill Pay | E10: e
A11: Service Charge = | E11: SC
A13: Business Checkbook | J13: Bank Statement | Q13: Bank Reconciliation Form
A14: Check No. | B14: Date | C14: Transaction Description | D14: Withdrawal | E14: ü | F14: Date of Deposit | G14: Amount of Deposit or Credit | H14: Balance | J14: Check No. | K14: ü | L14: Withdrawals | M14: Deposits | N14: Date | O14: Balance
A15: Balance Forward ==> | H15: 3538.32 | N15: =B16 -> 2018-05-01 | O15: 3211.2 | R15: Checks Outstanding | T15: Compare the list of checks paid by the bank with your records. List and total the checks not yet paid.
A16: 1256 | B16: 2018-05-01 | C16: Name 1 | D16: 108.5 | E16: x | H16: =H15+G16-D16 -> 3429.82 | J16: =A17 -> e | L16: =D17 -> 75 | N16: =N15+2 -> 2018-05-03 | O16: =O15+M16-L16 -> 3136.2 | R16: Number | S16: Amount
A17: e | B17: =B16+1 -> 2018-05-02 | C17: Name 2 | D17: 75 | H17: 3354.82 | M17: =G19 -> 1201.12 | N17: =F19+2 -> 2018-05-12 | O17: 4337.32 | T17: 1 | U17: Enter new balance from bank statement:
A18: =A16+1 -> 1257 | B18: =B17+6 -> 2018-05-08 | C18: Name 3 | D18: 218.62 | E18: x | H18: 3136.2 | J18: =A20 -> e | L18: =D20 -> 836.15 | N18: =N17+4 -> 2018-05-16 | O18: 3501.17
C19: Deposit | F19: =B18+2 -> 2018-05-10 | G19: 1201.12 | H19: 4337.32 | J19: =A21 -> 1258 | L19: =D21 -> 400 | N19: =N18+2 -> 2018-05-18 | O19: 3101.17 | T19: 2 | U19: List any deposits made by you and | X19: +
A20: e | B20: =F19+5 -> 2018-05-15 | C20: Name 4 | D20: 836.15 | H20: 3501.17 | J20: RC | L20: 49.07 | N20: =N19 -> 2018-05-18 | O20: 3052.1 | U20: not yet recorded by the bank: | X20: +
A21: =A18+1 -> 1258 | B21: =B20+1 -> 2018-05-16 | C21: Name 5 | D21: 400 | H21: 3101.17 | J21: =A23 -> 1260 | L21: =D23 -> 60.01 | N21: =N20+5 -> 2018-05-23 | O21: 2992.09 | X21: +
A22: =A21+1 -> 1259 | B22: =B21+2 -> 2018-05-18 | C22: Name 6 | D22: 25.33 | H22: 3075.84 | J22: ATM | L22: =D26 -> 40 | N22: =B26 -> 2018-05-26 | O22: 2952.09 | X22: +
A23: =A22+1 -> 1260 | B23: =B22+5 -> 2018-05-23 | C23: Name 7 | D23: 60.01 | H23: 3015.83 | J23: IC | M23: 3.22 | N23: =EOMONTH(N22,0) -> 2018-05-31 | O23: 2955.31 | T23: 3 | U23: Add all numbers from lines above.
A24: =A23+1 -> 1261 | B24: =B23+1 -> 2018-05-24 | C24: Name 8 | D24: 97.37 | H24: 2918.46 | J24: SC | L24: 7.6 | N24: =EOMONTH(N23,0) -> 2018-05-31 | O24: 2947.71 | U24: Total:
C25: Deposit | F25: =B24+2 -> 2018-05-26 | G25: 865.5 | H25: 3783.96 | J25: CP | L25: 12 | N25: 2018-05-31 | O25: 2935.71 | T25: 4 | U25: Total of checks outstanding: | X25: -
A26: ATM | B26: =F25 -> 2018-05-26 | D26: 40 | H26: 3743.96 | T26: 5 | U26: Subtract (4) from (3). This is the adjusted bank balance
R28: Total
R30: To reconcile your records:
R31: 6 | S31: List your checkbook balance
R32: 7 | S32: Write the total of any fees or charges deducted by the bank and not yet subtracted by you from your checkbook: | V32: -
R33: 8 | S33: Subtract line (7) from line (6).
R34: 9 | S34: Add interest credit: | V34: +
R35: 10 | S35: Add line (9) to line (8). This is the adjsuted checkbook balance.

Sheet HW(1an)
A1: Below are the two documents: 1) the Business Checkbook and the 2) Bank Statement.
A2: Use the Bank Reconciliation Form to verify that the adjusted balance for the checkbook and for the bank statement are equal.
A5: Business Checkbook | J5: Bank Statement | Q5: Bank Reconciliation Form
A6: Check No. Ref # | B6: Date | C6: Transaction Description | D6: Withdrawal | E6: ü | F6: Date of Deposit | G6: Amount of Deposit or Credit | H6: Balance | J6: Check No. Ref # | K6: ü | L6: Withdrawals | M6: Deposits | N6: Date | O6: Balance
A7: Balance Forward ==> | H7: 3538.32 | N7: =B8 -> 2018-05-01 | O7: 3211.2 | R7: Checks Outstanding | T7: Compare the list of checks paid by the bank with your records. List and total the checks not yet paid.
A8: 1256 | B8: 2018-05-01 | C8: Name 1 | D8: 108.5 | E8: x | H8: =H7+G8-D8 -> 3429.82 | J8: =A9 -> e1946 | K8: x | L8: =D9 -> 75 | N8: =N7+2 -> 2018-05-03 | O8: =O7+M8-L8 -> 3136.2 | R8: Number | S8: Amount
A9: e1946 | B9: =B8+1 -> 2018-05-02 | C9: Name 2 | D9: 75 | E9: x | H9: 3354.82 | K9: x | M9: =G11 -> 1201.12 | N9: =F11+2 -> 2018-05-12 | O9: 4337.32 | R9: ='HW(1an)'!A14 -> 1259 | S9: ='HW(1an)'!D14 -> 25.33 | T9: 1 | U9: Enter new balance from bank statement: | Y9: ='HW(1an)'!O17 -> 2935.71
A10: =A8+1 -> 1257 | B10: =B9+6 -> 2018-05-08 | C10: Name 3 | D10: 218.62 | E10: x | H10: 3136.2 | J10: =A12 -> e2247 | K10: x | L10: =D12 -> 836.15 | N10: =N9+4 -> 2018-05-16 | O10: 3501.17 | R10: ='HW(1an)'!A16 -> 1261 | S10: ='HW(1an)'!D16 -> 97.37
C11: Deposit | E11: x | F11: =B10+2 -> 2018-05-10 | G11: 1201.12 | H11: 4337.32 | J11: =A13 -> 1258 | K11: x | L11: =D13 -> 400 | N11: =N10+2 -> 2018-05-18 | O11: 3101.17 | T11: 2 | U11: List any deposits made by you and | X11: + | Y11: ='HW(1an)'!N22 -> 865.5
A12: e2247 | B12: =F11+5 -> 2018-05-15 | C12: Name 4 | D12: 836.15 | E12: x | H12: 3501.17 | J12: Returned Check | L12: 49.07 | N12: =N11 -> 2018-05-18 | O12: 3052.1 | U12: not yet recorded by the bank: | X12: +
A13: =A10+1 -> 1258 | B13: =B12+1 -> 2018-05-16 | C13: Name 5 | D13: 400 | E13: x | H13: 3101.17 | J13: =A15 -> 1260 | K13: x | L13: =D15 -> 60.01 | N13: =N12+5 -> 2018-05-23 | O13: 2992.09 | X13: +
A14: =A13+1 -> 1259 | B14: =B13+2 -> 2018-05-18 | C14: Name 6 | D14: 25.33 | H14: 3075.84 | J14: =A18 -> ATM 342258 | K14: x | L14: =D18 -> 40 | N14: =B18 -> 2018-05-26 | O14: 2952.09 | X14: +
A15: =A14+1 -> 1260 | B15: =B14+5 -> 2018-05-23 | C15: Name 7 | D15: 60.01 | E15: x | H15: 3015.83 | J15: Interest Paid | M15: 3.22 | N15: =EOMONTH(N14,0) -> 2018-05-31 | O15: 2955.31 | T15: 3 | U15: Add all numbers from lines above.
A16: =A15+1 -> 1261 | B16: =B15+1 -> 2018-05-24 | C16: Name 8 | D16: 97.37 | H16: 2918.46 | J16: Service Charge | L16: 7.6 | N16: =EOMONTH(N15,0) -> 2018-05-31 | O16: 2947.71 | U16: Total: | Y16: =SUM(Y9:Y15) -> 3801.21
C17: Deposit | F17: =B16+2 -> 2018-05-26 | G17: 865.5 | H17: 3783.96 | J17: Charge For Checks | L17: 12 | N17: 2018-05-31 | O17: 2935.71 | T17: 4 | U17: Total of checks outstanding: | X17: - | Y17: =S20 -> 122.7
A18: ATM 342258 | B18: =F17 -> 2018-05-26 | D18: 40 | H18: 3743.96 | T18: 5 | U18: Subtract (4) from (3). This is the adjusted bank balance | Y18: =Y16-Y17 -> 3678.51
R20: Total | S20: =SUM(S9:S19) -> 122.7
D22: Items we don't know about, add | H22: =M15 -> 3.22 | J22: Items that bank does not know about, add | N22: =G17 -> 865.5 | R22: To reconcile your records:
D23: items we don't know about, subtract | H23: =L12+L16+L17 -> 68.67 | J23: items that bank does not know about, subtract | N23: =D14+D16 -> 122.7 | R23: 6 | S23: List your checkbook balance | W23: ='HW(1an)'!H18 -> 3743.96
F24: Adjusted Checkbook | H24: =H18-H23+H22 -> 3678.51 | L24: Adjusted Bank | N24: =O17+N22-N23 -> 3678.51 | R24: 7 | S24: Write the total of any fees or charges deducted by the bank and not yet subtracted by you from your checkbook: | V24: - | W24: ='HW(1an)'!H23 -> 68.67
R25: 8 | S25: Subtract line (7) from line (6). | W25: =W23-W24 -> 3675.29
L26: In Balance? | N26: =N24=H24 -> TRUE | R26: 9 | S26: Add interest credit: | V26: + | W26: ='HW(1an)'!H22 -> 3.22
R27: 10 | S27: Add line (9) to line (8). This is the adjsuted checkbook balance. | W27: =W25+W26 -> 3678.51
W29: In Balance?
W30: =W27=Y18 -> TRUE

Sheet HW(2)
A1: Below are the two documents: 1) the Business Checkbook and the 2) Bank Statement.
A2: Use the Bank Reconciliation Form to verify that the adjusted balance for the checkbook and for the bank statement are equal.
A3: The Legend below indicates the code used by the bank to indicate what each amount represents
A5: Legend
A6: Automatic Teller Machine | D6: ATM
A7: Charge For Checks (Fee paid for Checks) | D7: CP
A8: Interest Credit (Interest Paid) | D8: IC
A9: Returned Check | D9: RC
A10: electronic Bill Pay | D10: e
A11: Service Charge | D11: SC
A13: Check No. | B13: Date | C13: Transaction Description | D13: Withdrawals | E13: ü | F13: Date of Deposit | G13: Amount of Deposit | H13: Balance | J13: Bank Statement
G14: Balance Forward ==> | H14: 7682.07 | J14: Check No. | K14: ü | L14: Withdrawals | M14: Deposits | N14: Date | O14: Balance | R14: Checks Outstanding | T14: Compare the list of checks paid by the bank with your records. List and total the checks not yet paid.
A15: e | B15: 2011-03-03 | C15: Action Packing Supplies | D15: 451.16 | H15: =IF(C15="","",H14-D15+G15) -> 7230.91 | N15: 2011-03-05 | O15: 6647.78 | R15: Number | S15: Amount
A16: 663 | B16: 2011-03-03 | C16: Crown Paper | D16: 954.29 | E16: x | H16: 6276.62 | J16: Deposit | M16: 913.28 | N16: 2011-03-07 | O16: =IF(J16="","",O15+M16-L16) -> 7561.06 | T16: 1 | U16: Enter new balance from bank statement:
A17: =A16+1 -> 664 | B17: 2011-03-05 | C17: ATM cash | D17: 80 | E17: x | H17: 6196.62 | J17: e | L17: 451.16 | N17: 2011-03-11 | O17: =IF(J17="","",O16+M17-L17) -> 7109.9
C18: Deposit | F18: 2011-03-07 | G18: 913.28 | H18: 7109.9 | J18: 665 | L18: 340.88 | N18: 2011-03-16 | O18: 6769.02 | T18: 2 | U18: List any deposits made by you and | X18: +
A19: e | B19: 2011-03-10 | C19: Fairless Water District | D19: 72.37 | H19: 7037.53 | J19: RC | L19: 82.15 | N19: 2011-03-16 | O19: 6686.87 | U19: not yet recorded by the bank: | X19: +
A20: 665 | B20: 2011-03-12 | C20: Audia Temporary | D20: 340.88 | H20: 6696.65 | J20: Deposit | M20: 450.18 | N20: 2011-03-16 | O20: 7137.05 | X20: +
A21: e | B21: 2011-03-13 | C21: Lionel Toys | D21: 618.65 | H21: 6078 | J21: e | L21: 72.37 | N21: 2011-03-20 | O21: 7064.68 | X21: +
A22: 666 | B22: 2011-03-14 | C22: Fairless Hills Power | D22: 100.5 | H22: 5977.5 | J22: IC | M22: 22.48 | N22: 2011-03-20 | O22: 7087.16 | T22: 3 | U22: Add all numbers from lines above.
C23: Deposit | F23: 2011-03-16 | G23: 450.18 | H23: 6427.68 | J23: e | L23: 618.65 | N23: 2011-03-22 | O23: 6468.51 | U23: Total:
C24: Deposit | F24: 2011-03-18 | G24: 163.55 | H24: 6591.23 | J24: Deposit | M24: 163.55 | N24: 2011-03-22 | O24: 6632.06 | T24: 4 | U24: Total of checks outstanding: | X24: -
A25: 667 | B25: 2011-03-20 | C25: Hunt Roofing | D25: 238.5 | H25: 6352.73 | J25: 667 | L25: 238.5 | N25: 2011-03-26 | O25: 6393.56 | T25: 5 | U25: Subtract (4) from (3). This is the adjusted balance
A26: =A25+1 -> 668 | B26: 2011-03-22 | C26: Standard Brands | D26: 315.62 | H26: 6037.11 | J26: SC | L26: 12.7 | N26: 2011-03-26 | O26: 6380.86
A27: =A26+1 -> 669 | B27: 2011-03-23 | C27: Penny-Saver Products | D27: 67.29 | H27: 5969.82 | R27: Total
C28: Deposit | F28: 2011-03-24 | G28: 830.75 | H28: 6800.57
R29: To reconcile your records:
J30: withdrawals that We do not know about | R30: 6 | S30: List your checkbook balance
J31: Deposits that We do not know about | R31: 7 | S31: Write the total of any fees or charges deducted by the bank and not yet subtracted by you from your checkbook: | V31: -
C32: Deposits that Bank does not know about | R32: 8 | S32: Subtract line (7) from line (6).
C33: Withdrawals that Bank does not know about | R33: 9 | S33: Add interest credit: | V33: +
R34: 10 | S34: Add line (9) to line (8). This is the checkbook balance.

Sheet HW(2an)
A1: Below are the two documents: 1) the Business Checkbook and the 2) Bank Statement.
A2: Use the Bank Reconciliation Form to verify that the adjusted balance for the checkbook and for the bank statement are equal.
A3: The Legend below indicates the code used by the bank to indicate what each amount represents
A5: Legend
A6: Automatic Teller Machine | D6: ATM
A7: Charge For Checks (Fee paid for Checks) | D7: CP
A8: Interest Credit (Interest Paid) | D8: IC
A9: Returned Check = | D9: RC
A10: electronic Bill Pay | D10: e
A11: Service Charge = | D11: SC
A13: Check No. | B13: Date | C13: Transaction Description | D13: Withdrawals | E13: ü | F13: Date of Deposit | G13: Amount of Deposit | H13: Balance | J13: Bank Statement
G14: Balance Forward ==> | H14: 7682.07 | J14: Check No. | K14: ü | L14: Withdrawals | M14: Deposits | N14: Date | O14: Balance | R14: Checks Outstanding | T14: Compare the list of checks paid by the bank with your records. List and total the checks not yet paid.
A15: e | B15: 2011-03-03 | C15: Action Packing Supplies | D15: 451.16 | E15: x | H15: =IF(C15="","",H14-D15+G15) -> 7230.91 | N15: 2011-03-05 | O15: 6647.78 | R15: Number | S15: Amount
A16: 663 | B16: 2011-03-03 | C16: Crown Paper | D16: 954.29 | E16: x | H16: 6276.62 | J16: Deposit | K16: x | M16: 913.28 | N16: 2011-03-07 | O16: =IF(J16="","",O15+M16-L16) -> 7561.06 | T16: 1 | U16: Enter new balance from bank statement: | Y16: =O26 -> 6380.86
A17: =A16+1 -> 664 | B17: 2011-03-05 | C17: ATM cash | D17: 80 | E17: x | H17: 6196.62 | J17: e | K17: x | L17: 451.16 | N17: 2011-03-11 | O17: =IF(J17="","",O16+M17-L17) -> 7109.9
C18: Deposit | E18: x | F18: 2011-03-07 | G18: 913.28 | H18: 7109.9 | J18: 665 | K18: x | L18: 340.88 | N18: 2011-03-16 | O18: 6769.02 | T18: 2 | U18: List any deposits made by you and | X18: + | Y18: =G28 -> 830.75
A19: e | B19: 2011-03-10 | C19: Fairless Water District | D19: 72.37 | E19: x | H19: 7037.53 | J19: RC | L19: 82.15 | N19: 2011-03-16 | O19: 6686.87 | U19: not yet recorded by the bank: | X19: +
A20: 665 | B20: 2011-03-12 | C20: Audia Temporary | D20: 340.88 | E20: x | H20: 6696.65 | J20: Deposit | K20: x | M20: 450.18 | N20: 2011-03-16 | O20: 7137.05 | X20: +
A21: e | B21: 2011-03-13 | C21: Lionel Toys | D21: 618.65 | E21: x | H21: 6078 | J21: e | K21: x | L21: 72.37 | N21: 2011-03-20 | O21: 7064.68 | X21: +
A22: 666 | B22: 2011-03-14 | C22: Fairless Hills Power | D22: 100.5 | H22: 5977.5 | J22: IC | M22: 22.48 | N22: 2011-03-20 | O22: 7087.16 | T22: 3 | U22: Add all numbers from lines above.
C23: Deposit | E23: x | F23: 2011-03-16 | G23: 450.18 | H23: 6427.68 | J23: e | K23: x | L23: 618.65 | N23: 2011-03-22 | O23: 6468.51 | U23: Total: | Y23: =SUM(Y16:Y21) -> 7211.61
C24: Deposit | E24: x | F24: 2011-03-18 | G24: 163.55 | H24: 6591.23 | J24: Deposit | K24: x | M24: 163.55 | N24: 2011-03-22 | O24: 6632.06 | T24: 4 | U24: Total of checks outstanding: | X24: - | Y24: =F33 -> 483.41
A25: 667 | B25: 2011-03-20 | C25: Hunt Roofing | D25: 238.5 | E25: x | H25: 6352.73 | J25: 667 | K25: x | L25: 238.5 | N25: 2011-03-26 | O25: 6393.56 | T25: 5 | U25: Subtract (4) from (3). This is the adjusted balance | Y25: =Y23-Y24 -> 6728.2
A26: =A25+1 -> 668 | B26: 2011-03-22 | C26: Standard Brands | D26: 315.62 | H26: 6037.11 | J26: SC | L26: 12.7 | N26: 2011-03-26 | O26: 6380.86
A27: =A26+1 -> 669 | B27: 2011-03-23 | C27: Penny-Saver Products | D27: 67.29 | H27: 5969.82 | R27: Total
C28: Deposit | F28: 2011-03-24 | G28: 830.75 | H28: 6800.57
R29: To reconcile your records:
J30: withdrawals that We do not know about | N30: =L19+L26 -> 94.85 | R30: 6 | S30: List your checkbook balance | W30: =H28 -> 6800.57
J31: Deposits that We do not know about | N31: =SUM(M22) -> 22.48 | R31: 7 | S31: Write the total of any fees or charges deducted by the bank and not yet subtracted by you from your checkbook: | V31: - | W31: =N30 -> 94.85
C32: Deposits that Bank does not know about | F32: =G28 -> 830.75 | R32: 8 | S32: Subtract line (7) from line (6). | W32: =W30-W31 -> 6705.72
C33: Withdrawals that Bank does not know about | F33: =D22+D26+D27 -> 483.41 | R33: 9 | S33: Add interest credit: | V33: + | W33: =N31 -> 22.48
R34: 10 | S34: Add line (9) to line (8). This is the checkbook balance. | W34: =W32+W33 -> 6728.2

Sheet ii
B2: Checks Outstanding | D2: Compare the list of checks paid by the bank with your records. List and total the checks not yet paid.
B3: Number | C3: Amount
D4: 1 | E4: Enter new balance from bank statement:
D6: 2 | E6: List any deposits made by you and | H6: +
E7: not yet recorded by the bank: | H7: +
H8: +
H9: +
D10: 3 | E10: Add all numbers from lines above.
E11: Total:
D12: 4 | E12: Total of checks outstanding: | H12: -
D13: 5 | E13: Subtract (4) from (3). This is the adjusted balance
B15: Total
B17: To reconcile your records:
B18: 6 | C18: List your checkbook balance
B19: 7 | C19: Write the total of any fees or charges deducted by the bank and not yet subtracted by you from your checkbook: | F19: -
B20: 8 | C20: Subtract line (7) from line (6).
B21: 9 | C21: Add interest credit: | F21: +
B22: 10 | C22: Add line (9) to line (8). This is the checkbook balance.
